fUSD/lending_fUSD_20250906
["ID","MTS","AMOUNT","RATE_DAILY","PERIOD"]
[383823966,1757133059131,-220.83,0.00088248,120]
[383823967,1757133059140,-500.0,0.00088518,120]
[383823968,1757133059151,-200.0,0.00088559,112]
[383823969,1757133059161,-200.0,0.00088559,112]
[383823970,1757133059171,-386.14770532,0.00088692,2]
[383823971,1757133059180,-160.0,0.000888,120]
[383823972,1757133059189,-278.0,0.0008884,120]
[383823973,1757133059199,-4000.0,0.00089,120]
[383823974,1757133059209,-10000.0,0.00089,120]
[383823975,1757133059218,-200.0,0.00089161,120]
[383823976,1757133059227,-150.0,0.00089183,120]
[383823977,1757133059237,-2905.03,0.00089204,120]
[383823978,1757133059246,-994.65213261,0.00089286,120]
[383823979,1757133059255,-150.0,0.00089494,120]
[383823980,1757133059265,-6633.04,0.000897,80]
[383823981,1757133059274,-3152.6455032,0.00089938,13]
[383823982,1757133059284,-214.0,0.0008994,120]
[383823983,1757133059293,-213.0,0.0008994,120]
[383823984,1757133059303,-623.61715938,0.0009,120]
[383823985,1757133059312,-2000.0,0.0009,120]
[383823986,1757133059321,-301.53,0.0009,2]
[383823987,1757133059331,-220.56974175,0.0009,60]
[383823988,1757133059340,-290000.5562374,0.0009,120]
[383823989,1757133059350,-10000.0,0.0009,120]
[383823990,1757133059363,-1087.0,0.0009016,120]
[383823991,1757133059373,-500.0,0.00090565,120]
[383823992,1757133059382,-150.0,0.00090632,120]
[383823993,1757133059392,-619.13194416,0.0009085,120]
[383823994,1757133059401,-200.0,0.00091248,120]
[383823995,1757133059411,-278.0,0.0009161,120]
[383823996,1757133059420,-177.05469883,0.00091681,7]
[383823997,1757133059432,-220.83,0.00091997,120]
[383823998,1757133059442,-4000.0,0.00092,120]
[383823999,1757133059452,-150.0,0.00092089,120]
[383824000,1757133059462,-150.0,0.00092183,120]
[383824001,1757133059471,-200.0,0.00092848,120]
[383824002,1757133059481,-1000.0,0.00093,120]
[383824003,1757133059490,-5108.94302303,0.00093,120]
[383824004,1757133059499,-207.515,0.00093046,120]
[383824005,1757133059508,-802.0,0.00093123,30]
[383824006,1757133059518,-937.15,0.00093123,30]
[383824007,1757133059527,-802.0,0.00093123,30]
[383824008,1757133059536,-802.0,0.00093123,30]
[383824009,1757133059546,-802.0,0.00093123,30]
[383824010,1757133059557,-802.0,0.00093123,30]
[383824011,1757133059567,-400.68,0.00093123,30]
[383824012,1757133059577,-214.0,0.0009326,120]
[383824013,1757133059587,-213.0,0.0009326,120]
[383824014,1757133059597,-302.71,0.00093397,30]
[383824015,1757133059606,-302.72,0.00093397,30]
[383824016,1757133059616,-300.5,0.00093397,30]
[383824017,1757133059625,-150.0,0.00093397,30]
[383824018,1757133059635,-174.35,0.00093397,30]
[383824019,1757133059644,-166.62,0.00093397,30]
[383824020,1757133059653,-541.44,0.00093397,30]
[383824021,1757133059662,-151.07,0.00093397,30]
[383824022,1757133059671,-300.0,0.00093397,30]
[383824023,1757133059681,-409.88,0.00093397,30]
[383824024,1757133059691,-723.07,0.00093397,30]
[383824025,1757133059700,-409.88,0.00093397,30]
[383824026,1757133059709,-174.35,0.00093397,30]
[383824027,1757133059719,-541.44,0.00093397,30]
[383824028,1757133059728,-166.62,0.00093397,30]
[383824029,1757133059738,-541.44,0.00093397,30]
[383824030,1757133059747,-166.25,0.00093397,30]
[383824031,1757133059756,-174.35,0.00093397,30]
[383824032,1757133059765,-409.88,0.00093397,30]
[383824033,1757133059774,-541.44,0.00093397,30]
[383824034,1757133059783,-174.35,0.00093397,30]
[383824035,1757133059792,-380.87,0.00093397,30]
[383824036,1757133059801,-541.44,0.00093397,30]
[383824037,1757133059811,-170.39,0.00093397,30]
[383824038,1757133059820,-541.44,0.00093397,30]
[383824039,1757133059829,-541.44,0.00093397,30]
[383824040,1757133059839,-746.55,0.00093397,30]
[383824041,1757133059848,-541.44,0.00093397,30]
[383824042,1757133059857,-541.44,0.00093397,30]
[383824043,1757133059866,-239.33,0.00093397,30]
[383824044,1757133059876,-150.0,0.00093422,120]
[383824045,1757133059887,-2000.02161271,0.000935,120]
[383824046,1757133059896,-1900.69,0.000936,120]
[383824047,1757133059905,-1090.22,0.000936,120]
[383824048,1757133059914,-3916.59433011,0.000936,120]
[383824049,1757133059993,-2373.37566989,0.000936,120]
[383824050,1757133060004,-1039.95,0.000936,120]
[383824051,1757133060014,-218.04,0.000936,120]
[383824052,1757133060023,-4277.18,0.000936,120]
[383824053,1757133060033,-1986.8584888,0.00093736,14]
[383824054,1757133060045,-386.14770532,0.00093767,2]
[383824055,1757133060055,-282993.76015781,0.000938,120]
[383824056,1757133060065,-500.0,0.00093867,120]
[383824057,1757133060075,-160.0,0.000939,120]
[383824058,1757133060084,-4000.0,0.00094,120]
[383824059,1757133060094,-1623.02,0.00094,60]
[383824060,1757133060103,-23941.8,0.00094076,120]
[383824061,1757133060112,-5000.0,0.00094097,120]
[383824062,1757133060122,-198.17,0.000941,60]
[383824063,1757133060131,-1405.84,0.000941,60]
[383824064,1757133060140,-325.63,0.00094106,120]
[383824065,1757133060150,-5000.0,0.00094128,120]
[383824066,1757133060159,-2097.52,0.00094164,120]
[383824067,1757133060169,-150.71,0.00094185,120]
[383824068,1757133060178,-25000.0,0.00094199,120]
[383824069,1757133060187,-1846.65,0.00094201,120]
[383824070,1757133060196,-311.5,0.00094219,30]
[383824071,1757133060206,-2101.41,0.00094232,120]
[383824072,1757133060215,-5000.0,0.00094267,120]
[383824073,1757133060225,-278.0,0.0009437,120]
[383824074,1757133060234,-5000.0,0.00094384,120]
[383824075,1757133060243,-5000.0,0.00094413,120]
[383824076,1757133060253,-1969.35,0.00094415,120]
[383824077,1757133060262,-231.03,0.00094572,120]
[383824078,1757133060271,-25000.0,0.00094599,120]
[383824079,1757133060281,-307.21,0.00094674,120]
[383824080,1757133060290,-2938.42,0.00094678,120]
[383824081,1757133060300,-1167.0,0.00094698,120]
[383824082,1757133060310,-5047.01,0.000947,30]
[383824083,1757133060319,-1187.59,0.00094707,120]
[383824084,1757133060329,-822.57,0.00094724,120]
[383824085,1757133060338,-330.34524909,0.00094725,28]
[383824086,1757133060347,-5000.0,0.00094748,120]
[383824087,1757133060359,-5000.0,0.00094766,120]
[383824088,1757133060369,-5000.0,0.00094781,120]
[383824089,1757133060379,-5000.0,0.00094797,120]
[383824090,1757133060388,-5000.0,0.00094823,120]
[383824091,1757133060397,-821.0714744,0.00094825,15]
[383824092,1757133060406,-5000.0,0.0009487,120]
[383824093,1757133060416,-61829.81728225,0.0009489,120]
[383824094,1757133060426,-1087.0,0.00094905,120]
[383824095,1757133060435,-258.89280071,0.00094905,120]
[383824096,1757133060446,-5000.0,0.00094917,120]
[383824097,1757133060455,-5000.0,0.00094927,120]
[383824098,1757133060464,-5000.0,0.00094937,120]
[383824099,1757133060475,-5000.0,0.00094939,120]
[383824100,1757133060484,-2513.8,0.0009497,120]
[383824101,1757133060493,-5000.0,0.00094984,120]
[383824102,1757133060502,-2444.74,0.00094989,120]
[383824103,1757133060511,-2000.0,0.00095,120]
[383824104,1757133060521,-5047.01,0.00095,30]
[383824105,1757133060530,-150.0,0.00095556,120]
[383824106,1757133060539,-220.83,0.00095746,120]
[383824107,1757133060549,-489.8194822,0.000958,120]
[383824108,1757133060558,-500.0,0.000958,120]
[383824109,1757133060568,-500.0,0.000958,120]
[383824110,1757133060577,-505.0,0.000958,120]
[383824111,1757133060587,-166.65,0.00095958,120]
[383824112,1757133060596,-2000.0,0.00096,120]
[383824113,1757133060605,-35160.37777733,0.000964,30]
[383824114,1757133060614,-214.0,0.0009658,120]
[383824115,1757133060623,-213.0,0.0009658,120]
[383824116,1757133060632,-500.0,0.00096612,120]
[383824117,1757133060642,-2000.0,0.00097,120]
[383824118,1757133060651,-26355.21243499,0.00097,120]
[383824119,1757133060660,-152.0,0.00097025,5]
[383824120,1757133060669,-1405.84,0.000971,60]
[383824121,1757133060678,-150.0,0.00097138,120]
[383824122,1757133060687,-278.0,0.0009714,120]
[383824123,1757133060696,-150.0,0.00097164,120]
[383824124,1757133060706,-6337.12144314,0.000975,120]
[383824125,1757133060715,-454.36328198,0.000975,120]
[383824126,1757133060724,-500.0,0.00097708,120]
[383824127,1757133060733,-716.7330381,0.0009777,120]
[383824128,1757133060743,-150.0,0.00097913,120]
[383824129,1757133060752,-500.0,0.00097999,120]
[383824130,1757133060761,-2000.0,0.00098,120]
[383824131,1757133060770,-5436.53,0.00098,120]
[383824132,1757133060779,-500.0,0.00098273,120]
[383824133,1757133060788,-376.99423117,0.00098547,120]
[383824134,1757133060797,-5047.01,0.000986,30]
[383824135,1757133060807,-49932.81987885,0.000988,120]
[383824136,1757133060816,-502.25853296,0.00098804,120]
[383824137,1757133060825,-10000.0,0.0009888,120]
[383824138,1757133060834,-1900.69,0.000989,120]
[383824139,1757133060843,-554.58,0.000989,120]
[383824140,1757133060964,-6946.95714067,0.000989,120]
[383824141,1757133060974,-1090.22,0.000989,120]
[383824142,1757133060983,-1039.95,0.000989,120]
[383824143,1757133060992,-218.04,0.000989,120]
[383824144,1757133061001,-20000.0,0.0009898,120]
[383824145,1757133061011,-2000.0,0.00099,120]
[383824146,1757133061020,-166.0,0.00099,120]
[383824147,1757133061029,-420.57,0.00099,60]
[383824148,1757133061038,-162.0,0.00099,120]
[383824149,1757133061048,-6400.0,0.00099,120]
[383824150,1757133061057,-372.104999,0.00099,120]
[383824151,1757133061066,-1401.56,0.000991,120]
[383824152,1757133061076,-3084.33,0.000992,120]
[383824153,1757133061085,-154.0,0.000994,120]
[383824154,1757133061094,-2000.0,0.00099401,14]
[383824155,1757133061104,-2000.0,0.00099401,14]
[383824156,1757133061113,-2000.0,0.00099401,14]
[383824157,1757133061122,-220.83,0.00099495,120]
[383824158,1757133061131,-248.71531821,0.00099869,30]
[383824159,1757133061140,-500.0,0.00099869,30]
[383824160,1757133061150,-151.0,0.00099869,30]
[383824161,1757133061159,-600.0,0.00099869,30]
[383824162,1757133061169,-500.0,0.00099869,30]
[383824163,1757133061178,-231.28369723,0.00099878,56]
[383824164,1757133061187,-500.0,0.00099878,56]
[383824165,1757133061197,-239.84119403,0.00099878,120]
[383824166,1757133061207,-500.0,0.00099878,56]
[383824167,1757133061216,-500.0,0.00099878,56]
[383824168,1757133061225,-500.0,0.00099878,120]
[383824169,1757133061234,-160.0,0.00099878,56]
[383824170,1757133061243,-500.0,0.00099878,120]
[383824171,1757133061253,-500.0,0.00099878,120]
[383824172,1757133061262,-160.0,0.00099878,120]
[383824173,1757133061271,-151.0,0.00099878,56]
[383824174,1757133061280,-151.0,0.00099878,120]
[383824175,1757133061290,-250.0,0.00099878,56]
[383824176,1757133061300,-250.0,0.00099878,120]
[383824177,1757133061310,-600.0,0.00099878,56]
[383824178,1757133061319,-600.0,0.00099878,120]
[383824179,1757133061328,-380.30727402,0.00099878,56]
[383824180,1757133061338,-250.0,0.00099878,56]
[383824181,1757133061348,-250.0,0.00099878,56]
[383824182,1757133061361,-500.0,0.00099878,56]
[383824183,1757133061371,-250.0,0.00099878,120]
[383824184,1757133061380,-250.0,0.00099878,120]
[383824185,1757133061390,-500.0,0.00099878,120]
[383824186,1757133061400,-500.0,0.00099878,56]
[383824187,1757133061409,-500.0,0.00099878,56]
[383824188,1757133061418,-564.30141647,0.00099878,120]
[383824189,1757133061428,-151.0,0.00099878,56]
[383824190,1757133061437,-151.0,0.00099878,120]
[383824191,1757133061447,-151.0,0.00099878,56]
[383824192,1757133061457,-151.0,0.00099878,120]
[383824193,1757133061467,-215.0738,0.00099879,56]
[383824194,1757133061476,-500.0,0.00099879,56]
[383824195,1757133061486,-500.0,0.00099879,56]
[383824196,1757133061495,-223.0315306,0.00099879,120]
[383824197,1757133061505,-500.0,0.00099879,56]
[383824198,1757133061514,-500.0,0.00099879,120]
[383824199,1757133061523,-500.0,0.00099879,120]
[383824200,1757133061533,-160.0,0.00099879,56]
[383824201,1757133061542,-500.0,0.00099879,120]
[383824202,1757133061551,-160.0,0.00099879,120]
[383824203,1757133061561,-151.0,0.00099879,56]
[383824204,1757133061570,-151.0,0.00099879,120]
[383824205,1757133061579,-600.0,0.00099879,56]
[383824206,1757133061588,-663.6910289,0.00099879,120]
[383824207,1757133061598,-250.0,0.00099879,56]
[383824208,1757133061607,-250.0,0.00099879,120]
[383824209,1757133061616,-600.0,0.00099879,56]
[383824210,1757133061626,-600.0,0.00099879,120]
[383824211,1757133061635,-250.0,0.00099879,56]
[383824212,1757133061645,-250.0,0.00099879,120]
[383824213,1757133061653,-151.0,0.00099879,56]
[383824214,1757133061663,-250.0,0.00099879,56]
[383824215,1757133061672,-155.9940727,0.00099879,120]
[383824216,1757133061682,-151.8384098,0.00099879,56]
[383824217,1757133061691,-250.0,0.00099879,120]
[383824218,1757133061700,-250.0,0.00099879,56]
[383824219,1757133061710,-250.0,0.00099879,56]
[383824220,1757133061719,-500.0,0.00099879,56]
[383824221,1757133061728,-250.0,0.00099879,120]
[383824222,1757133061738,-250.0,0.00099879,120]
[383824223,1757133061747,-500.0,0.00099879,120]
[383824224,1757133061756,-500.0,0.00099879,56]
[383824225,1757133061766,-500.0,0.00099879,120]
[383824226,1757133061775,-500.0,0.00099879,56]
[383824227,1757133061784,-500.0,0.00099879,120]
[383824228,1757133061794,-151.0,0.00099879,56]
[383824229,1757133061803,-151.0,0.00099879,120]
[383824230,1757133061812,-151.0,0.00099879,56]
[383824231,1757133061822,-151.0,0.00099879,120]
[383824232,1757133061831,-189.3857151,0.00099887,60]
[383824233,1757133061840,-49960.90966128,0.00099891,120]
[383824234,1757133066121,-123.38456882,0.00068493,118]
[383824235,1757133066142,-276.61543118,0.00068493,118]
[383824236,1757133066152,-400.0,0.00068493,120]
[383824237,1757133066161,-410.98099353,0.00068493,120]
[383824238,1757133066171,-400.0,0.00068493,120]
[383824239,1757133066180,-400.0,0.00068493,120]
[383824240,1757133066190,-400.0,0.00068493,120]
[383824241,1757133066199,-400.0,0.00068493,120]
[383824242,1757133066210,-400.0,0.00068493,120]
[383824243,1757133066219,-281.1030363,0.00068493,120]
[383824244,1757133066228,-400.0,0.00068493,120]
[383824245,1757133066237,-400.0,0.00068493,120]
[383824246,1757133066246,-400.0,0.00068493,120]
[383824247,1757133066255,-400.0,0.00068493,120]
[383824248,1757133066264,-400.0,0.00068493,120]
[383824249,1757133066273,-400.0,0.00068493,120]
[383824250,1757133066282,-160.00088174,0.00068493,120]
[383824251,1757133066292,-345.81773322,0.00068493,120]
[383824252,1757133066301,-207.85060303,0.00068898,118]
[383824253,1757133066311,-400.0,0.00068899,120]
[383824254,1757133066320,-400.0,0.00068899,120]
[383824255,1757133066329,-400.0,0.00068899,120]
[383824256,1757133066338,-400.0,0.00069992,120]
[383824257,1757133066348,-400.0,0.00069999,120]
[383824258,1757133066362,-400.0,0.00069999,120]
[383824259,1757133066371,-368.99649637,0.00069999,120]
[383824260,1757133066380,-400.0,0.00069999,120]
[383824261,1757133066389,-328.70837164,0.00069999,120]
[383824262,1757133066399,-400.0,0.00069999,120]
[383824263,1757133066408,-1004268.5144428,0.00099891,120]
[383824264,1757133143593,200.0,0.00019,10]
[383824272,1757133680538,-256.58934156,0.00019973,2]
[383824275,1757133994100,-211.3028904,0.00020316,2]
[383824276,1757134036093,-224.6471096,0.00020316,2]
[383824277,1757134036119,-435.95,0.00021386,2]
[383824278,1757134036142,-435.95,0.00022455,2]
[383824279,1757134036164,-435.95,0.00023524,2]
[383824280,1757134036185,-219.46454076,0.00024494,2]
[383824281,1757134036212,-435.95,0.00024594,2]
[383824282,1757134036237,-202.97479502,0.00025663,2]
[383824283,1757134039096,-232.97520498,0.00025663,2]
[383824284,1757134039123,-435.95,0.00026732,2]
[383824285,1757134039147,-342.11586543,0.00027801,2]
[383824286,1757134051113,-93.83413457,0.00027801,2]
[383824287,1757134051138,-435.95,0.00028871,2]
[383824288,1757134051163,-125.09433646,0.0002994,2]
[383824291,1757134145097,-310.85566354,0.0002994,2]
[383824292,1757134145118,-0.15587226,0.00030136,30]
[383824293,1757134145161,-350.09101608,0.00030136,30]
[383824294,1757134145183,-500.0,0.0003055,7]
[383824295,1757134145206,-500.0,0.00030657,7]
[383824296,1757134145227,-150.0,0.00030684,120]
[383824297,1757134145250,-435.95,0.00031009,2]
[383824298,1757134145271,-500.0,0.00031052,7]
[383824299,1757134145293,-500.0,0.00031151,7]
[383824300,1757134145313,-500.0,0.00031409,7]
[383824301,1757134145340,-435.95,0.00032079,2]
[383824302,1757134145362,-500.0,0.00032367,7]
[383824303,1757134145382,-169.33,0.00032559,2]
[383824304,1757134145403,-250.0,0.00032934,2]
[383824305,1757134145426,-435.95,0.00033148,2]
[383824306,1757134145447,-199.0,0.00033698,7]
[383824307,1757134145467,-121.51976392,0.00034022,7]
[383824308,1757134153108,-378.48023608,0.00034022,7]
[383824309,1757134153129,-276.0,0.00034217,3]
[383824310,1757134153152,-435.95,0.00034217,2]
[383824311,1757134153178,-199.0,0.00034383,9]
[383824312,1757134153199,-199.0,0.00035068,11]
[383824313,1757134153223,-435.95,0.00035286,2]
[383824314,1757134153246,-219.46454075,0.00035379,2]
[383824315,1757134153269,-500.0,0.00035469,7]
[383824316,1757134153293,-529.93579875,0.00035614,7]
[383824317,1757134153315,-1600.0,0.00035615,3]
[383824318,1757134153338,-300.0,0.00035615,2]
[383824319,1757134153361,-269.020156,0.00035616,10]
[383824320,1757134153384,-158.060573,0.00035616,10]
[383824321,1757134153406,-154.430083,0.00035616,10]
[383824322,1757134153428,-160.661612,0.00035616,10]
[383824323,1757134153449,-155.447565,0.00035616,10]
[383824324,1757134153470,-199.0,0.00035753,13]
[383824325,1757134153491,-500.0,0.0003595,7]
[383824326,1757134153516,-435.95,0.00036356,2]
[383824327,1757134153538,-199.0,0.00036438,15]
[383824328,1757134153560,-400.0,0.00036642,3]
[383824329,1757134153580,-500.0,0.00036727,7]
[383824330,1757134153603,-150.0,0.00036731,120]
[383824331,1757134153627,-460.62,0.00036922,2]
[383824332,1757134153649,-150.0,0.00036983,120]
[383824333,1757134153670,-4536.67,0.00037095,2]
[383824334,1757134153691,-199.0,0.00037123,17]
[383824335,1757134153712,-1727.38,0.00037138,2]
[383824336,1757134153732,-236.22584135,0.00037175,2]
[383824337,1757134153754,-157.00556455,0.000372,120]
[383824338,1757134153779,-435.95,0.00037425,2]
[383824339,1757134153801,-500.0,0.00037564,7]
[383824340,1757134153823,-606.439,0.00037753,49]
[383824341,1757134153845,-151.0,0.00037753,19]
[383824342,1757134153867,-151.0,0.00037753,19]
[383824343,1757134153892,-151.0,0.00037753,19]
[383824344,1757134153913,-175.64965803,0.00037753,49]
[383824345,1757134153933,-199.0,0.00037808,19]
[383824346,1757134153954,-3037.84,0.00037857,2]
[383824347,1757134153978,-500.0,0.00037894,7]
[383824348,1757134153998,-150.0,0.00037915,2]
[383824349,1757134154020,-1500.0,0.00037949,120]
[383824350,1757134154042,-610.0,0.0003796,2]
[383824351,1757134154064,-167.0,0.00038,120]
[383824352,1757134154086,-162.0,0.00038,120]
[383824353,1757134154108,-2240.0,0.00038313,5]
[383824354,1757134154128,-500.0,0.00038469,7]
[383824355,1757134154149,-315.46843563,0.00038493,21]
[383824356,1757134154174,-435.95,0.00038494,2]
[383824357,1757134154196,-506.63217466,0.00038516,15]
[383824358,1757134154216,-500.0,0.00038516,15]
[383824359,1757134154237,-636.10607886,0.00038516,15]
[383824360,1757134154256,-15763.23908562,0.00038517,7]
[383824361,1757134159071,-1397.76664823,0.00038517,7]
[383824362,1757134160090,-2455.082476,0.00038517,7]
[383824366,1757134232265,-4000.0,0.00031,30]
[383824367,1757134232275,-160.0,0.00037774,3]
[383824368,1757134232285,-500.0,0.00037774,15]
[383824369,1757134232295,-354.64252226,0.00037774,15]
[383824370,1757134232305,-46270.2929132,0.00037775,2]
[383824371,1757134232319,-6742.97011823,0.00037775,2]
[383824372,1757134232331,-46887.0791263,0.00037775,2]
[383824373,1757134232343,-1019.76587117,0.00037775,2]
[383824374,1757134232356,-3228.16586728,0.00037775,2]
[383824375,1757134232392,-128.62127599,0.00037775,2]
[383824387,1757134232784,-295.2742552,0.00037774,15]
[383824388,1757134232794,-146.5046639,0.00037775,2]
[383824393,1757134238379,-4371.37645847,0.00037775,2]
[383824394,1757134238395,-145608.76208936,0.00037775,2]
[383824396,1757134238404,-1000.0,0.00038516,2]
[383824398,1757134238413,-91566.04179015,0.00038517,7]
[383824400,1757134238423,-500.0,0.00038573,5]
[383824402,1757134238433,-535.34569,0.00038601,120]
[383824403,1757134238442,-17395.0,0.00038601,30]
[383824404,1757134238452,-165.47,0.00039086,2]
[383824406,1757134238461,-1000.0,0.00039121,5]
[383824407,1757134238471,-500.0,0.00039348,7]
[383824408,1757134238480,-500.0,0.00039471,7]
[383824409,1757134238490,-435.95,0.00039564,2]
[383824410,1757134238499,-500.0,0.00039594,7]
[383824411,1757134238508,-1502.90076975,0.00039668,5]
[383824412,1757134238518,-325.4914362,0.00040547,14]
[383824413,1757134238527,-200.0,0.00040578,2]
[383824414,1757134238537,-435.95,0.00040633,2]
[383824415,1757134238546,-200.0,0.0004069,2]
[383824416,1757134238556,-865.68,0.00041217,2]
[383824417,1757134238565,-206.97,0.0004123,2]
[383824418,1757134238575,-500.0,0.00041273,30]
[383824419,1757134238584,-247.19,0.00041314,2]
[383824420,1757134238594,-500.0,0.00041452,30]
[383824421,1757134238603,-2009.47,0.0004148,2]
[383824422,1757134238613,-500.0,0.00041584,30]
[383824423,1757134238622,-2242.74,0.00041644,2]
[383824424,1757134238632,-199.53,0.00041693,120]
[383824425,1757134238642,-666.0,0.00041756,15]
[383824426,1757134238651,-169.94,0.00041867,2]
[383824427,1757134238661,-500.0,0.00042026,30]
[383824428,1757134238671,-150.0,0.00042615,120]
[383824429,1757134238680,-196.89,0.00042668,2]
[383824430,1757134238690,-2858.57,0.00043902,2]
[383824431,1757134238699,-222.09,0.00044003,2]
[383824432,1757134238709,-250.0,0.00044003,120]
[383824433,1757134238718,-500.0,0.00044069,30]
[383824434,1757134238728,-254403.5383839,0.00044142,2]
[383824435,1757134238737,-150.62595561,0.00044173,10]
[383824436,1757134238746,-500.0,0.0004465,30]
[383824437,1757134238756,-10997.36,0.00045125,30]
[383824438,1757134238765,-500.0,0.00045321,30]
[383824439,1757134238775,-500.0,0.00045534,30]
[383824440,1757134238785,-3011.38049103,0.00045931,30]
[383824441,1757134238795,-510.80586244,0.00045973,10]
[383824442,1757134238804,-500.0,0.00045973,3]
[383824443,1757134238814,-261.14641665,0.00045973,10]
[383824444,1757134238823,-219.46454075,0.00046264,2]
[383824445,1757134238833,-11269.58973063,0.00046354,2]
[383824446,1757134238842,-541.44,0.00046364,30]
[383824447,1757134238852,-300.0,0.00046364,30]
[383824448,1757134238861,-302.71,0.00046364,30]
[383824449,1757134238870,-541.44,0.00046364,30]
[383824450,1757134238880,-150.0,0.00046364,30]
[383824451,1757134238889,-937.15,0.00046364,30]
[383824452,1757134238899,-300.5,0.00046364,30]
[383824453,1757134238910,-802.0,0.00046364,30]
[383824454,1757134238919,-174.35,0.00046364,30]
[383824455,1757134238928,-723.07,0.00046364,30]
[383824456,1757134238938,-151.07,0.00046364,30]
[383824457,1757134238948,-541.44,0.00046364,30]
[383824458,1757134238957,-166.62,0.00046364,30]
[383824459,1757134238967,-306.13,0.00046364,30]
[383824460,1757134238976,-409.88,0.00046364,30]
[383824461,1757134238985,-541.44,0.00046364,30]
[383824462,1757134238995,-541.44,0.00046364,30]
[383824463,1757134239004,-166.62,0.00046364,30]
[383824464,1757134239013,-802.0,0.00046364,30]
[383824465,1757134239023,-174.35,0.00046364,30]
[383824466,1757134239032,-409.88,0.00046364,30]
[383824467,1757134239045,-541.44,0.00046364,30]
[383824468,1757134239054,-174.35,0.00046364,30]
[383824469,1757134239063,-802.0,0.00046364,30]
[383824470,1757134239073,-541.44,0.00046364,30]
[383824471,1757134239082,-409.88,0.00046364,30]
[383824472,1757134239092,-541.44,0.00046364,30]
[383824473,1757134239101,-802.0,0.00046364,30]
[383824474,1757134239110,-174.35,0.00046364,30]
[383824475,1757134239120,-541.44,0.00046364,30]
[383824476,1757134239129,-541.44,0.00046364,30]
[383824477,1757134239139,-802.0,0.00046364,30]
[383824478,1757134239148,-444.44,0.00046364,30]
[383824479,1757134239158,-400.68,0.00046364,30]
[383824480,1757134239167,-380.87,0.00046364,30]
[383824481,1757134239177,-170.39,0.00046364,30]
[383824482,1757134239186,-166.25,0.00046364,30]
[383824483,1757134239195,-500.0,0.00046373,10]
[383824484,1757134239205,-396.34770889,0.00046373,10]
[383824485,1757134239214,-500.0,0.00046373,10]
[383824486,1757134239223,-500.0,0.00046373,10]
[383824487,1757134239233,-162.0,0.000467,120]
[383824488,1757134239243,-593.84,0.00046754,30]
[383824489,1757134239252,-551.96958932,0.00046921,10]
[383824490,1757134239261,-1000.0,0.00046921,10]
[383824491,1757134239270,-1014.44561698,0.00046921,10]
[383824492,1757134239280,-1065.66,0.00047349,2]
[383824493,1757134239289,-252.62,0.00047431,2]
[383824494,1757134239298,-1500.0,0.00047468,10]
[383824495,1757134239307,-1854.86,0.00047542,2]
[383824496,1757134239316,-340.98,0.00047542,2]
[383824497,1757134239325,-6272.36,0.00047542,2]
[383824498,1757134239335,-999.99,0.00047542,2]
[383824499,1757134239344,-1572.95,0.00047542,2]